fUST/lending_fUST_20250626
["ID","MTS","AMOUNT","RATE_DAILY","PERIOD"]
[367827908,1750937461717,151.0,0.00024,120]
[367827909,1750937461789,-824.95454347,0.00016438,2]
[367827910,1750937461801,-276.03545653,0.00016438,2]
[367827911,1750937461812,-1100.99,0.00016712,2]
[367827912,1750937461821,-177.55192282,0.00016986,2]
[367827913,1750937461834,-344.79099916,0.00016986,2]
[367827914,1750937461846,-578.64707802,0.00016986,2]
[367827915,1750937461855,-1100.99,0.0001726,2]
[367827916,1750937461865,-1100.99,0.00017534,2]
[367827917,1750937461874,-499.62,0.00017808,2]
[367827918,1750937461883,-1100.99,0.00017808,2]
[367827919,1750937461894,-499.62,0.00018082,2]
[367827920,1750937461903,-1100.99,0.00018082,2]
[367827921,1750937461914,-499.62,0.00018356,2]
[367827922,1750937461923,-1100.99,0.00018356,2]
[367827923,1750937461933,-500.0,0.00018629,2]
[367827924,1750937461942,-499.62,0.0001863,2]
[367827925,1750937461951,-806.19275606,0.0001863,2]
[367827926,1750937461965,-254.00260516,0.0001863,2]
[367827927,1750937461976,-40.79463878,0.0001863,2]
[367827928,1750937461986,-473.70319174,0.00018904,2]
[367827929,1750937462001,-25.91680826,0.00018904,2]
[367827930,1750937462010,-577.60219174,0.00018904,2]
[367827931,1750937462026,-523.38780826,0.00018904,2]
[367827932,1750937462035,-499.62,0.00019178,2]
[367827933,1750937462045,-1100.99,0.00019178,2]
[367827934,1750937462055,-499.62,0.00019452,2]
[367827935,1750937462065,-1100.99,0.00019452,2]
[367827936,1750937462075,-499.62,0.00019726,2]
[367827937,1750937462084,-1100.99,0.00019726,2]
[367827938,1750937462094,-499.62,0.0002,2]
[367827939,1750937462103,-1100.99,0.0002,2]
[367827940,1750937462113,-499.62,0.00020273,2]
[367827941,1750937462122,-765.00671889,0.00020273,2]
[367827942,1750937462133,-335.98328111,0.00020273,2]
[367827943,1750937462142,-499.62,0.00020547,2]
[367827944,1750937462152,-1100.99,0.00020547,2]
[367827945,1750937462161,-2357.2,0.00020821,2]
[367827946,1750937462171,-499.62,0.00020821,2]
[367827947,1750937462180,-1100.99,0.00020821,2]
[367827948,1750937462189,-245624.39896445,0.00021,2]
[367827949,1750937462198,-43243.89503397,0.00021,2]
[367827950,1750937462210,-23756.10496603,0.00021,2]
[367827951,1750937462219,-151.0,0.00021,2]
[367827952,1750937462229,-3000.0,0.00021,2]
[367827953,1750937462238,-151.0,0.00021,2]
[367827954,1750937462251,-271.700578,0.00021,2]
[367827955,1750937462260,-271.700578,0.00021,2]
[367827956,1750937462269,-151.0,0.00021,2]
[367827957,1750937462278,-160.0,0.00021,2]
[367827958,1750937462287,-8954.54366545,0.00021,2]
[367827959,1750937462298,-2111.45633455,0.00021,2]
[367827960,1750937462307,-500.0,0.00021,2]
[367827961,1750937462321,-500.0,0.00021,2]
[367827962,1750937462330,-151.0,0.00021,2]
[367827963,1750937462339,-151.0,0.00021,2]
[367827964,1750937462348,-151.0,0.00021,2]
[367827965,1750937462357,-151.0,0.00021,2]
[367827966,1750937462366,-168.0,0.00021004,2]
[367827967,1750937462376,-247.44940474,0.0002101,2]
[367827968,1750937462388,-2752.55059526,0.0002101,2]
[367827969,1750937462398,-500.0,0.00021015,2]
[367827970,1750937462407,-3000.0,0.0002102,2]
[367827971,1750937462418,-3000.0,0.0002103,2]
[367827972,1750937462427,-3000.0,0.0002104,2]
[367827973,1750937462437,-366.0585355,0.00021041,2]
[367827974,1750937462447,-366.0585355,0.00021041,2]
[367827975,1750937462457,-370.2078551,0.00021041,2]
[367827976,1750937462466,-1916.19638505,0.0002105,2]
[367827977,1750937462477,-466.22057489,0.0002105,2]
[367827978,1750937462719,-460.0,0.00016438,2]
[367827979,1750937462729,-460.0,0.00016438,2]
[367827980,1750937462738,-460.0,0.00016712,2]
[367827981,1750937462748,-460.0,0.00016712,2]
[367827982,1750937462757,-49.94928612,0.00016986,2]
[367827983,1750937680161,154.0,0.00024,120]
[367827984,1750937703226,640.84327315,0.00025962,120]
[367827985,1750937703261,2095.45974553,0.00025962,120]
[367827986,1750937829809,184.593222,0.00013699,2]
[367827989,1750938280908,24900.0,0.0001555,2]
[367827991,1750938356356,229.1752038,0.00015674,2]
[367828019,1750938638679,-2888.0,0.000163,2]
[367828020,1750938638689,-821.87375041,0.00016338,2]
[367828021,1750938638698,-169.97704006,0.00016338,2]
[367828022,1750938638708,-300.0,0.00016436,2]
[367828023,1750938638717,-300.0,0.00016436,2]
[367828024,1750938638727,-300.0,0.00016436,2]
[367828025,1750938638736,-1200.0,0.00016436,2]
[367828026,1750938638745,-460.0,0.00016438,2]
[367828027,1750938638756,-460.0,0.00016438,2]
[367828028,1750938638766,-460.0,0.00016438,2]
[367828029,1750938638776,-211.47745591,0.00016438,2]
[367828030,1750938638787,-460.0,0.00016438,2]
[367828031,1750938638796,-460.0,0.00016438,2]
[367828032,1750938638806,-460.0,0.00016438,2]
[367828033,1750938638816,-460.0,0.00016438,2]
[367828034,1750938638828,-460.0,0.00016438,2]
[367828035,1750938638837,-460.0,0.00016438,2]
[367828036,1750938638846,-298.30678478,0.00016438,2]
[367828037,1750938638857,-460.0,0.00016438,2]
[367828038,1750938638867,-460.0,0.00016438,2]
[367828039,1750938638877,-460.0,0.00016438,2]
[367828040,1750938638887,-460.0,0.00016438,2]
[367828041,1750938638896,-460.0,0.00016438,2]
[367828042,1750938638906,-460.0,0.00016438,2]
[367828043,1750938638916,-460.0,0.00016438,2]
[367828044,1750938638926,-460.0,0.00016438,2]
[367828045,1750938638935,-460.0,0.00016438,2]
[367828046,1750938638946,-460.0,0.00016438,2]
[367828047,1750938638957,-460.0,0.00016438,2]
[367828048,1750938638968,-460.0,0.00016438,2]
[367828049,1750938638978,-548.40708123,0.00016438,2]
[367828050,1750938638989,-460.0,0.00016438,2]
[367828051,1750938638999,-460.0,0.00016438,2]
[367828052,1750938639009,-460.0,0.00016438,2]
[367828053,1750938639018,-460.0,0.00016438,2]
[367828054,1750938639026,-460.0,0.00016438,2]
[367828055,1750938639035,-460.0,0.00016438,2]
[367828056,1750938639046,-460.0,0.00016438,2]
[367828057,1750938639055,-460.0,0.00016438,2]
[367828058,1750938639064,-460.0,0.00016438,2]
[367828059,1750938639073,-460.0,0.00016438,2]
[367828060,1750938639082,-460.0,0.00016438,2]
[367828061,1750938639091,-529.89,0.00016438,2]
[367828062,1750938639101,-460.0,0.00016438,2]
[367828063,1750938639110,-198.70633996,0.00016438,2]
[367828064,1750938639120,-460.0,0.00016438,2]
[367828065,1750938639129,-460.0,0.00016438,2]
[367828066,1750938639139,-460.0,0.00016438,2]
[367828067,1750938639148,-460.0,0.00016438,2]
[367828068,1750938639157,-680.23,0.00016438,2]
[367828069,1750938639167,-460.0,0.00016438,2]
[367828070,1750938639176,-460.0,0.00016438,2]
[367828071,1750938639185,-420.0,0.00016438,2]
[367828072,1750938639195,-460.0,0.00016438,2]
[367828073,1750938639204,-460.0,0.00016438,2]
[367828074,1750938639214,-460.0,0.00016438,2]
[367828075,1750938639223,-460.0,0.00016438,2]
[367828076,1750938639232,-460.0,0.00016438,2]
[367828077,1750938639241,-460.0,0.00016438,2]
[367828078,1750938639250,-563.75,0.00016438,2]
[367828079,1750938639260,-417.16122628,0.00016438,2]
[367828080,1750938639269,-460.0,0.00016438,2]
[367828081,1750938639278,-460.0,0.00016438,2]
[367828082,1750938639287,-460.0,0.00016438,2]
[367828083,1750938639296,-460.0,0.00016438,2]
[367828084,1750938639305,-460.0,0.00016438,2]
[367828085,1750938639314,-460.0,0.00016438,2]
[367828086,1750938639324,-460.0,0.00016438,2]
[367828087,1750938639333,-460.0,0.00016438,2]
[367828088,1750938639343,-460.0,0.00016438,2]
[367828089,1750938639353,-479.16,0.00016438,2]
[367828090,1750938639362,-460.0,0.00016438,2]
[367828091,1750938639371,-460.0,0.00016438,2]
[367828092,1750938639380,-604.39,0.00016438,2]
[367828093,1750938639391,-460.0,0.00016438,2]
[367828094,1750938639402,-460.0,0.00016438,2]
[367828095,1750938639412,-460.0,0.00016438,2]
[367828096,1750938639422,-460.0,0.00016438,2]
[367828097,1750938639431,-460.0,0.00016438,2]
[367828098,1750938639443,-460.0,0.00016438,2]
[367828099,1750938639452,-460.0,0.00016438,2]
[367828100,1750938639462,-460.0,0.00016438,2]
[367828101,1750938639471,-460.0,0.00016438,2]
[367828102,1750938639481,-538.54,0.00016438,2]
[367828103,1750938639490,-460.0,0.00016438,2]
[367828104,1750938639500,-460.0,0.00016438,2]
[367828105,1750938639510,-460.0,0.00016438,2]
[367828106,1750938639520,-460.0,0.00016438,2]
[367828107,1750938639529,-591.49,0.00016438,2]
[367828108,1750938639539,-460.0,0.00016438,2]
[367828109,1750938639548,-460.0,0.00016438,2]
[367828110,1750938639558,-460.0,0.00016438,2]
[367828111,1750938639568,-460.0,0.00016438,2]
[367828112,1750938639577,-460.0,0.00016438,2]
[367828113,1750938639586,-460.0,0.00016438,2]
[367828114,1750938639596,-460.0,0.00016438,2]
[367828115,1750938639605,-422.30076626,0.00016438,2]
[367828116,1750938639615,-460.0,0.00016438,2]
[367828117,1750938639624,-460.0,0.00016438,2]
[367828118,1750938639636,-460.0,0.00016438,2]
[367828119,1750938639647,-980.18,0.00016438,2]
[367828120,1750938639657,-460.0,0.00016438,2]
[367828121,1750938639666,-460.0,0.00016438,2]
[367828122,1750938639676,-460.0,0.00016438,2]
[367828123,1750938639686,-460.0,0.00016438,2]
[367828124,1750938639695,-460.0,0.00016438,2]
[367828125,1750938639704,-460.0,0.00016438,2]
[367828126,1750938639714,-460.0,0.00016438,2]
[367828127,1750938639724,-460.0,0.00016438,2]
[367828128,1750938639734,-460.0,0.00016438,2]
[367828129,1750938639744,-460.0,0.00016438,2]
[367828130,1750938639753,-523.96305674,0.00016438,2]
[367828131,1750938639763,-460.0,0.00016438,2]
[367828132,1750938639773,-460.0,0.00016438,2]
[367828133,1750938639782,-460.0,0.00016438,2]
[367828134,1750938639792,-460.0,0.00016438,2]
[367828135,1750938639801,-460.0,0.00016438,2]
[367828136,1750938639810,-460.0,0.00016438,2]
[367828137,1750938639820,-460.0,0.00016438,2]
[367828138,1750938639829,-460.0,0.00016438,2]
[367828139,1750938639839,-460.0,0.00016438,2]
[367828140,1750938639848,-460.0,0.00016438,2]
[367828141,1750938639858,-460.0,0.00016438,2]
[367828142,1750938639869,-554.56,0.00016438,2]
[367828143,1750938639878,-460.0,0.00016438,2]
[367828144,1750938639888,-460.0,0.00016438,2]
[367828145,1750938639897,-460.0,0.00016438,2]
[367828146,1750938639907,-460.0,0.00016438,2]
[367828147,1750938639916,-460.0,0.00016438,2]
[367828148,1750938639925,-460.0,0.00016438,2]
[367828149,1750938639935,-460.0,0.00016438,2]
[367828150,1750938639944,-460.0,0.00016438,2]
[367828151,1750938639956,-460.0,0.00016438,2]
[367828152,1750938639967,-593.91,0.00016438,2]
[367828153,1750938639978,-473.96,0.00016438,2]
[367828154,1750938639987,-460.0,0.00016438,2]
[367828155,1750938639996,-460.0,0.00016438,2]
[367828156,1750938640006,-460.0,0.00016438,2]
[367828157,1750938640016,-442.7716634,0.00016438,2]
[367828158,1750938640025,-460.0,0.00016438,2]
[367828160,1750938640036,-1405.31,0.00016438,2]
[367828162,1750938640045,-460.0,0.00016438,2]
[367828164,1750938640056,-460.0,0.00016438,2]
[367828165,1750938640065,-630.39,0.00016438,2]
[367828166,1750938640074,-469.13,0.00016438,2]
[367828167,1750938640085,-460.0,0.00016438,2]
[367828168,1750938640095,-583.07,0.00016438,2]
[367828169,1750938640105,-460.0,0.00016438,2]
[367828170,1750938640114,-889.83,0.00016438,2]
[367828171,1750938640124,-460.0,0.00016438,2]
[367828172,1750938640133,-460.0,0.00016438,2]
[367828173,1750938640143,-500.0,0.00016438,2]
[367828174,1750938640152,-500.0,0.00016438,2]
[367828175,1750938640162,-500.0,0.00016438,2]
[367828176,1750938640173,-500.0,0.00016438,2]
[367828177,1750938640182,-500.0,0.00016438,2]
[367828178,1750938640193,-519.55,0.00016438,2]
[367828179,1750938640202,-460.0,0.00016438,2]
[367828180,1750938640211,-460.0,0.00016438,2]
[367828181,1750938640220,-460.0,0.00016438,2]
[367828182,1750938640229,-460.0,0.00016438,2]
[367828183,1750938640238,-460.0,0.00016438,2]
[367828184,1750938640248,-460.0,0.00016438,2]
[367828185,1750938640257,-460.0,0.00016438,2]
[367828186,1750938640266,-460.0,0.00016438,2]
[367828187,1750938640275,-460.0,0.00016438,2]
[367828188,1750938640284,-460.0,0.00016438,2]
[367828189,1750938640294,-440.0,0.00016438,2]
[367828190,1750938640303,-514.82,0.00016438,2]
[367828191,1750938640312,-460.0,0.00016438,2]
[367828192,1750938640322,-552.56,0.00016438,2]
[367828193,1750938640332,-322.76762516,0.00016438,2]
[367828194,1750938640341,-2249.96,0.00016438,2]
[367828195,1750938640351,-460.0,0.00016438,2]
[367828196,1750938640361,-1484.65,0.00016438,2]
[367828198,1750938640370,-460.0,0.00016438,2]
[367828200,1750938640379,-1390.73,0.00016438,2]
[367828202,1750938640389,-460.0,0.00016438,2]
[367828204,1750938640398,-460.0,0.00016438,2]
[367828206,1750938640408,-596.44,0.00016438,2]
[367828208,1750938640417,-715.82,0.00016438,2]
[367828210,1750938640427,-460.0,0.00016438,2]
[367828212,1750938640436,-430.0,0.00016438,2]
[367828215,1750938640446,-460.0,0.00016438,2]
[367828217,1750938640455,-474.91,0.00016438,2]
[367828219,1750938640464,-460.0,0.00016438,2]
[367828220,1750938640474,-460.0,0.00016438,2]
[367828222,1750938640483,-780.26,0.00016438,2]
[367828224,1750938640493,-2309.22,0.00016438,2]
[367828226,1750938640502,-513.71,0.00016438,2]
[367828228,1750938640511,-460.0,0.00016438,2]
[367828230,1750938640520,-460.0,0.00016438,2]
[367828232,1750938640529,-460.0,0.00016438,2]
[367828234,1750938640539,-460.0,0.00016438,2]
[367828236,1750938640548,-240.84538776,0.00016438,2]
[367828238,1750938640558,-835.13,0.00016438,2]
[367828241,1750938640567,-460.0,0.00016438,2]
[367828243,1750938640576,-2937.52,0.00016438,2]
[367828245,1750938640586,-460.0,0.00016438,2]
[367828247,1750938640595,-460.0,0.00016438,2]
[367828249,1750938640604,-460.0,0.00016438,2]
[367828250,1750938640613,-460.0,0.00016438,2]
[367828252,1750938640623,-700.62,0.00016438,2]
[367828254,1750938640632,-460.0,0.00016438,2]
[367828256,1750938640641,-499.04,0.00016438,2]
[367828258,1750938640650,-460.0,0.00016438,2]
[367828260,1750938640659,-460.0,0.00016438,2]
[367828262,1750938640668,-460.0,0.00016438,2]
[367828264,1750938640678,-460.0,0.00016438,2]
[367828266,1750938640687,-1558.67,0.00016438,2]
[367828268,1750938640696,-1099.56,0.00016438,2]
[367828270,1750938640706,-460.0,0.00016438,2]
[367828272,1750938640715,-460.0,0.00016438,2]
[367828274,1750938640724,-460.0,0.00016438,2]
[367828276,1750938640734,-1080.61,0.00016438,2]
[367828278,1750938640744,-460.0,0.00016438,2]
[367828280,1750938640754,-1383.15,0.00016438,2]
[367828282,1750938640763,-460.0,0.00016438,2]
[367828284,1750938640773,-460.0,0.00016438,2]
[367828286,1750938640783,-460.0,0.00016438,2]
[367828288,1750938640792,-460.0,0.00016438,2]
[367828290,1750938640801,-460.0,0.00016438,2]
[367828292,1750938640810,-460.0,0.00016438,2]
[367828294,1750938640819,-460.0,0.00016438,2]
[367828296,1750938640828,-460.0,0.00016438,2]
[367828298,1750938640839,-460.0,0.00016438,2]
[367828300,1750938640849,-665.16,0.00016438,2]
[367828302,1750938640858,-460.0,0.00016438,2]
[367828304,1750938640867,-1435.58,0.00016438,2]
[367828306,1750938640877,-460.0,0.00016438,2]
[367828308,1750938640887,-460.0,0.00016438,2]
[367828310,1750938640896,-460.0,0.00016438,2]
[367828312,1750938640905,-587.13,0.00016438,2]
[367828314,1750938640914,-460.0,0.00016438,2]
[367828316,1750938640924,-460.0,0.00016438,2]
[367828318,1750938640933,-1773.28,0.00016438,2]
[367828320,1750938640943,-460.0,0.00016438,2]
[367828321,1750938640952,-487.17,0.00016438,2]
[367828323,1750938640965,-1528.42,0.00016438,2]
[367828325,1750938640974,-460.0,0.00016438,2]
[367828326,1750938640983,-460.0,0.00016438,2]
[367828327,1750938640993,-460.0,0.00016438,2]
[367828328,1750938641002,-460.0,0.00016438,2]
[367828329,1750938641012,-460.0,0.00016438,2]
[367828330,1750938641021,-1097.49,0.00016438,2]
[367828331,1750938641032,-460.0,0.00016438,2]
[367828332,1750938641041,-460.0,0.00016438,2]
[367828333,1750938641050,-460.0,0.00016438,2]
[367828334,1750938641060,-460.0,0.00016438,2]
[367828336,1750938641070,-460.0,0.00016438,2]
[367828338,1750938641079,-460.0,0.00016438,2]
[367828339,1750938641088,-460.0,0.00016438,2]
[367828340,1750938641098,-460.0,0.00016438,2]
[367828341,1750938641108,-460.0,0.00016438,2]
[367828342,1750938641117,-460.0,0.00016438,2]
[367828343,1750938641126,-460.0,0.00016438,2]
[367828344,1750938641135,-494.19,0.00016438,2]
[367828345,1750938641145,-460.0,0.00016438,2]
[367828346,1750938641154,-723.58,0.00016438,2]
[367828347,1750938641163,-460.0,0.00016438,2]
[367828348,1750938641172,-460.0,0.00016438,2]
[367828349,1750938641181,-460.0,0.00016438,2]
[367828350,1750938641191,-3359.93,0.00016438,2]
[367828351,1750938641200,-460.0,0.00016438,2]
[367828352,1750938641210,-549.38365147,0.00016438,2]
[367828353,1750938641219,-460.0,0.00016438,2]
[367828354,1750938641229,-1825.85,0.00016438,2]
[367828355,1750938641238,-848.99,0.00016438,2]
[367828356,1750938641247,-460.0,0.00016438,2]
[367828357,1750938641256,-460.0,0.00016438,2]
[367828358,1750938641265,-460.0,0.00016438,2]
[367828359,1750938641274,-460.0,0.00016438,2]
[367828360,1750938641284,-734.02,0.00016438,2]
[367828361,1750938641293,-3697.64,0.00016438,2]
[367828362,1750938641302,-460.0,0.00016438,2]
[367828363,1750938641312,-2136.24,0.00016438,2]
[367828364,1750938641321,-460.0,0.00016438,2]
[367828365,1750938641330,-460.0,0.00016438,2]
[367828366,1750938641339,-460.0,0.00016438,2]
[367828367,1750938641348,-3515.6337041,0.00016438,2]
[367828368,1750938641358,-676.36308478,0.00016612,2]
[367828369,1750938641368,-500.0,0.00016711,2]
[367828370,1750938641377,-500.0,0.00016711,2]
[367828371,1750938641386,-185.94107673,0.00016711,2]
[367828372,1750938641396,-460.0,0.00016712,2]
[367828373,1750938641406,-343.37,0.00016712,2]
[367828374,1750938641415,-460.0,0.00016712,2]
[367828375,1750938641425,-175.4918916,0.00016712,2]
[367828376,1750938641434,-460.0,0.00016712,2]
[367828377,1750938641444,-171.91409366,0.00016712,2]
[367828378,1750938641453,-460.0,0.00016712,2]
[367828379,1750938641462,-460.0,0.00016712,2]
[367828380,1750938641472,-460.0,0.00016712,2]
[367828381,1750938641482,-460.0,0.00016712,2]
[367828382,1750938641491,-460.0,0.00016712,2]
[367828383,1750938641500,-464.95034664,0.00016712,2]
[367828384,1750938641510,-460.0,0.00016712,2]
[367828385,1750938641519,-345.51000001,0.00016712,2]
[367828386,1750938641530,-209.01102194,0.00016712,2]
[367828387,1750938641720,-355.26366281,0.00016712,2]
[367828388,1750938641730,-448.91939185,0.00016712,2]
[367828389,1750938641740,-460.0,0.00016712,2]
[367828390,1750938641749,-460.0,0.00016712,2]
[367828391,1750938641759,-460.0,0.00016712,2]
[367828392,1750938641768,-460.0,0.00016712,2]
[367828393,1750938641777,-460.0,0.00016712,2]
[367828394,1750938641788,-278.63589999,0.00016712,2]
[367828395,1750938641797,-460.0,0.00016712,2]
[367828396,1750938641807,-460.0,0.00016712,2]
[367828397,1750938641816,-460.0,0.00016712,2]
[367828398,1750938641826,-460.0,0.00016712,2]
[367828399,1750938641835,-460.0,0.00016712,2]
[367828400,1750938641845,-460.0,0.00016712,2]
[367828401,1750938641855,-460.0,0.00016712,2]
[367828402,1750938641864,-529.89,0.00016712,2]
[367828403,1750938641874,-460.0,0.00016712,2]
[367828404,1750938641883,-460.0,0.00016712,2]
[367828405,1750938641893,-460.0,0.00016712,2]
[367828406,1750938641902,-460.0,0.00016712,2]
[367828407,1750938641911,-680.23,0.00016712,2]
[367828408,1750938641921,-460.0,0.00016712,2]
[367828409,1750938641931,-460.0,0.00016712,2]
[367828410,1750938641940,-460.0,0.00016712,2]
[367828411,1750938641951,-460.0,0.00016712,2]
[367828412,1750938641963,-460.0,0.00016712,2]
[367828413,1750938641973,-460.0,0.00016712,2]
[367828414,1750938641982,-460.0,0.00016712,2]
[367828415,1750938641991,-568.84709465,0.00016712,2]
[367828416,1750938642002,-563.75,0.00016712,2]
[367828417,1750938642011,-460.0,0.00016712,2]
[367828418,1750938642020,-460.0,0.00016712,2]
[367828419,1750938642030,-460.0,0.00016712,2]
[367828420,1750938642039,-460.0,0.00016712,2]
[367828421,1750938642049,-460.0,0.00016712,2]
[367828422,1750938642058,-460.0,0.00016712,2]
[367828423,1750938642067,-460.0,0.00016712,2]
[367828424,1750938642077,-460.0,0.00016712,2]
[367828425,1750938642088,-479.16,0.00016712,2]
[367828426,1750938642098,-460.0,0.00016712,2]
[367828427,1750938642108,-460.0,0.00016712,2]
[367828428,1750938642117,-460.0,0.00016712,2]
[367828429,1750938642126,-460.0,0.00016712,2]
[367828430,1750938642136,-460.0,0.00016712,2]
[367828431,1750938642145,-460.0,0.00016712,2]
[367828432,1750938642155,-460.0,0.00016712,2]
[367828433,1750938642164,-460.0,0.00016712,2]
[367828434,1750938642173,-460.0,0.00016712,2]
[367828435,1750938642183,-460.0,0.00016712,2]
[367828436,1750938642192,-460.0,0.00016712,2]
[367828437,1750938642201,-460.0,0.00016712,2]
[367828438,1750938642211,-591.49,0.00016712,2]
[367828439,1750938642220,-460.0,0.00016712,2]
[367828440,1750938642229,-460.0,0.00016712,2]
[367828441,1750938642238,-460.0,0.00016712,2]
[367828442,1750938642247,-460.0,0.00016712,2]
[367828443,1750938642257,-460.0,0.00016712,2]
[367828444,1750938642266,-460.0,0.00016712,2]
[367828445,1750938642275,-460.0,0.00016712,2]
[367828446,1750938642285,-472.03175633,0.00016712,2]
[367828447,1750938642294,-460.0,0.00016712,2]
[367828448,1750938642304,-460.0,0.00016712,2]
[367828449,1750938642314,-980.18,0.00016712,2]
[367828450,1750938642324,-460.0,0.00016712,2]
[367828451,1750938642334,-460.0,0.00016712,2]
[367828452,1750938642343,-460.0,0.00016712,2]
[367828453,1750938642352,-460.0,0.00016712,2]
[367828454,1750938642362,-460.0,0.00016712,2]
[367828455,1750938642371,-460.0,0.00016712,2]
[367828456,1750938642383,-460.0,0.00016712,2]
[367828457,1750938642393,-460.0,0.00016712,2]
[367828458,1750938642403,-460.0,0.00016712,2]
[367828459,1750938642412,-460.0,0.00016712,2]
[367828460,1750938642421,-385.1,0.00016712,2]
[367828461,1750938642432,-460.0,0.00016712,2]
[367828462,1750938642441,-460.0,0.00016712,2]
[367828463,1750938642450,-460.0,0.00016712,2]
[367828464,1750938642460,-460.0,0.00016712,2]
[367828465,1750938642469,-460.0,0.00016712,2]
[367828466,1750938642479,-460.0,0.00016712,2]
[367828467,1750938642488,-460.0,0.00016712,2]
[367828468,1750938642498,-460.0,0.00016712,2]
[367828469,1750938642507,-460.0,0.00016712,2]
[367828470,1750938642516,-460.0,0.00016712,2]
[367828471,1750938642525,-554.56,0.00016712,2]
[367828472,1750938642535,-460.0,0.00016712,2]
[367828473,1750938642544,-460.0,0.00016712,2]
[367828474,1750938642554,-460.0,0.00016712,2]
[367828475,1750938642565,-460.0,0.00016712,2]
[367828476,1750938642577,-460.0,0.00016712,2]
[367828477,1750938642586,-460.0,0.00016712,2]
[367828478,1750938642596,-460.0,0.00016712,2]
[367828479,1750938642605,-460.0,0.00016712,2]
[367828480,1750938642614,-593.91,0.00016712,2]
[367828481,1750938642623,-982.0,0.00016712,2]
[367828482,1750938642632,-460.0,0.00016712,2]
[367828483,1750938642641,-401.90887903,0.00016712,2]
[367828484,1750938642651,-460.0,0.00016712,2]
[367828485,1750938642660,-792.0,0.00016712,2]
[367828486,1750938642669,-460.0,0.00016712,2]
[367828487,1750938642678,-1405.31,0.00016712,2]
[367828488,1750938642687,-460.0,0.00016712,2]
[367828489,1750938642696,-460.0,0.00016712,2]
[367828490,1750938642705,-630.39,0.00016712,2]
[367828491,1750938642715,-469.13,0.00016712,2]
[367828492,1750938642724,-151.0,0.00016712,2]
[367828493,1750938642733,-151.0,0.00016712,2]
[367828494,1750938642742,-460.0,0.00016712,2]
[367828495,1750938642752,-201.65179822,0.00016712,2]
[367828496,1750938642761,-583.07,0.00016712,2]
[367828497,1750938642771,-151.0,0.00016712,2]
[367828498,1750938642781,-151.0,0.00016712,2]
[367828499,1750938642790,-460.0,0.00016712,2]
[367828500,1750938642800,-889.83,0.00016712,2]
[367828501,1750938642809,-152.6351556,0.00016712,2]
[367828502,1750938642820,-460.0,0.00016712,2]
[367828503,1750938642830,-151.8099724,0.00016712,2]
[367828504,1750938642839,-460.0,0.00016712,2]
[367828505,1750938642849,-519.55,0.00016712,2]
[367828506,1750938642858,-151.0,0.00016712,2]